Workbook

Sheet Smlouvy
A1: Žadatel | B1: Fakultní nemocnice Olomouc
A2: Název projektu | B2: Novostavba pavilonu HOK - Olomouc
A3: Číslo projektu | B3: CZ.05.5.11/0.0/0.0/17_061/0008664
C5: Identifikace smlouvy (název / předmět / číslo) | D5: Dodavatel | E5: Typ investičního výdaje | F5: Cena bez DPH | G5: % DPH | H5: Cena s DPH | I5: I / N | J5: Část SoD nesouvisející s předmětem podpory bez DPH | K5: Nezpůsobilé výdaje stanovené žadatelem bez DPH | L5: Komentář k nezpůsobilým výdajům stanoveným žadatelem | M5: Výsledné způsobilé výdaje bez DPH | N5: Výsledné způsobilé výdaje do RoPD včetně DPH | O5: Nesouvisející s předmětem s DPH
A6: Realizace | C6: Smlouva o dílo/zhotovitel stavby/ | D6: OHL ŽS, a.s. | E6: Zateplení | F6: 128990070 | G6: 21 | H6: =F6*(1+(G6/100)) -> 156077984.7 | I6: I | J6: 0 | K6: 25348246.82 | L6: V nezpůsobilých výdajích jsou zahrnuty sadové úpravy, chodníky a komunikace, oplocení, vnitřní zařízení a vyhotovení interiéru a montáže zdravotnických a laboratorních zařízení. Do nezpůsobilých výdajů byly zařazeny i některé části položek přípojek a přeložek rozvodů a sdělovací a zabezpečovací technika. Podrobně viz rozpočet projetku. | M6: =F6-J6-K6 -> 103641823.1 | N6: =M6*(1+(G6/100)) -> 125406606 | O6: =(J6)*(1+(G6/100)) -> 0
A8: Realizace celkem | F8: =SUM(F6:F7) -> 128990070 | H8: =SUM(H6:H7) -> 156077984.7 | J8: =SUM(J6:J7) -> 0 | M8: =SUM(M6:M7) -> 103641823.1 | N8: =SUM(N6:N7) -> 125406606 | O8: =SUM(O6:O7) -> 0
A10: Projektová příprava | E10: Irelevantní | H10: =F10*(1+(G10/100)) -> 0 | M10: =F10-J10-K10 -> 0 | N10: =M10*(1+(G10/100)) -> 0 | O10: =(J10)*(1+(G10/100)) -> 0
E11: Irelevantní | H11: 0 | M11: 0 | N11: 0 | O11: 0
C12: Objednávka/ polohopisné a výškopisné zaměření | D12: GEOL, spol. s r.o. | E12: Irelevantní | F12: 8300 | G12: 21 | H12: 10043 | I12: I | M12: 8300 | N12: 10043 | O12: 0
C13: Objednávka/ technická nivelace | D13: GEOL, spol. s r.o. | E13: Irelevantní | F13: 1200 | G13: 21 | H13: 1452 | I13: I | M13: 1200 | N13: 1452 | O13: 0
C14: Příkazní smlouva/ koordinátor BOZP | D14: SAFEA IVS s.r.o. | E14: Irelevantní | F14: 72000 | G14: 21 | H14: 87120 | I14: I | M14: 72000 | N14: 87120 | O14: 0
C15: Smlouva o dílo/projektová dokumentace + autorský dozor | D15: Adam Rujbr Architects s.r.o. | E15: Irelevantní | F15: 3664000 | G15: 21 | H15: 4433440 | I15: I | K15: 186000 | L15: cena za výkon IČ k získání rozhodnutí o umístění stavby, získání SP, pro změnu stavby před dokončením | M15: 3478000 | N15: 4208380 | O15: 0
A17: Projektová příprava celkem | F17: =SUM(F10:F16) -> 3745500 | H17: =SUM(H10:H16) -> 4532055 | J17: =SUM(J10:J16) -> 0 | M17: =SUM(M10:M16) -> 3559500 | N17: =SUM(N10:N16) -> 4306995 | O17: =SUM(O10:O16) -> 0
A19: Propagace | C19: objednávka/dočasný billboard | D19: Grapo s.r.o. | E19: Irelevantní | F19: 6550 | G19: 21 | H19: 7925.5 | I19: N | M19: =F19-J19-K19 -> 6550 | N19: =M19*(1+(G19/100)) -> 7925.5 | O19: =(J19)*(1+(G19/100)) -> 0
C20: objednávka/ pamětní deska | D20: P&V rytecké práce, s.r.o. | E20: Irelevantní | F20: 4450 | G20: 21 | H20: 5384.5 | I20: N | M20: =F20-J20-K20 -> 4450 | N20: =M20*(1+(G20/100)) -> 5384.5 | O20: =(J20)*(1+(G20/100)) -> 0
A22: Propagace celkem | F22: =SUM(F19:F21) -> 11000 | H22: =SUM(H19:H21) -> 13310 | J22: =SUM(J19:J21) -> 0 | M22: =SUM(M19:M21) -> 11000 | N22: =SUM(N19:N21) -> 13310 | O22: =SUM(O19:O21) -> 0
E24: Celkem | F24: =SUM(F8,F17,F22) -> 132746570 | H24: =SUM(H8,H17,H22) -> 160623349.7 | M24: =SUM(M8,M17,M22) -> 107212323.1 | N24: =SUM(N8,N17,N22) -> 129726911
E25: Celkem související s předmětem podpory | F25: =SUM(F8-J8,F17-J17,F22-J22) -> 132746570 | H25: =SUM(H8-O8,H17-O17,H22-O22) -> 160623349.7
A27: pozn.: Vyplňujte pouze bílo - zeleně stínované buňky ve sloupcích B až L. Při vyplňování se řiďte komentáři v rohu buněk! Po kontrole a nastavení konečné způsobilosti výdajů Vám projektový manažer zašle přehled částek způsobilých a nezpůsobilých výdajů ke všem zadaným smlouvám a zároveň konečnou podobu rozpočtu. Po odsouhlasení nastavíte v systému ISKP 2014+ částky u smluv a v rozpočtu v souladu se zaslaným návrhem.

Sheet Pomocné hodnoty (hidden)
A1: I
A2: N
A4: Zateplení
A5: Výměna zdroje (včetně kotelny či rek. OS)
A6: Vybudování nové otopné soustavy
A7: Instalace systému větrání s rekuperací odp. tepla
A8: Instalace solárního term. systému
A9: Instalace kogenerační jednotky
A10: Instalace fotovoltaického systému
A11: Výstavba veř. budov v pasivním e. s.
A12: Další opatření navržená energetickým auditem
A13: Dokumentace skutečného provedení
A14: Rezerva
A16: Irelevantní
